fUSD/lending_fUSD_20260127
["ID","MTS","AMOUNT","RATE_DAILY","PERIOD"]
[403732044,1769514646677,-20667.36685253,0.000432,120]
[403732045,1769514646690,-546.15709375,0.000432,120]
[403732046,1769514646722,-565.91203727,0.000432,120]
[403732047,1769514646832,-1010.1,0.00034639,2]
[403732048,1769514646846,-1008.24074895,0.00034639,2]
[403732049,1769514646883,-1907.42836594,0.00034639,2]
[403732050,1769514646895,-453.53024,0.00034639,2]
[403732051,1769514646907,-2190.70064511,0.00034639,2]
[403732052,1769514646918,-9083.41136536,0.000432,120]
[403732053,1769514646938,-154.28952904,0.00043135,120]
[403732054,1769514646948,-10860.21493045,0.000432,120]
[403732055,1769514646961,-592.40075735,0.000432,120]
[403732056,1769514647101,-3456.1,0.000432,120]
[403732057,1769514647114,-418.22941819,0.000432,120]
[403732058,1769514647156,-331409.89727597,0.000432,120]
[403732059,1769514647168,-1585.57444177,0.000432,120]
[403732060,1769514647181,-14615.11715009,0.000432,120]
[403732066,1769514719224,-382.50717071,0.00015588,2]
[403732067,1769514720631,-117.49282929,0.00015588,2]
[403732068,1769514720658,-151.0,0.00015588,2]
[403732069,1769514722633,-181.22,0.00015588,2]
[403732073,1769515210862,281.41145549,0.0001472,2]
[403732080,1769515297527,2443.76,0.00021,30]
[403732081,1769515412220,-500.0,0.00015587,2]
[403732082,1769515412244,-250.0,0.00015644,2]
[403732083,1769515412268,-281.0,0.00015701,2]
[403732084,1769515412293,-250.0,0.0001575,2]
[403732085,1769515412318,-300.0,0.00015944,2]
[403732086,1769515412345,-500.0,0.00015944,2]
[403732087,1769515412371,-500.0,0.00015944,2]
[403732088,1769515412397,-500.0,0.00015944,2]
[403732089,1769515412422,-283.21588847,0.00015944,2]
[403732090,1769515412448,-500.0,0.00015944,2]
[403732091,1769515412474,-500.0,0.00015944,2]
[403732092,1769515412500,-500.0,0.00015944,2]
[403732093,1769515412527,-500.0,0.00015944,2]
[403732094,1769515412553,-500.0,0.00015944,2]
[403732095,1769515412580,-500.0,0.00015944,2]
[403732096,1769515412606,-500.0,0.00015944,2]
[403732097,1769515412633,-500.0,0.00015944,2]
[403732098,1769515412659,-500.0,0.00015944,2]
[403732099,1769515412686,-500.0,0.00015944,2]
[403732100,1769515412713,-500.0,0.00015944,2]
[403732101,1769515412741,-500.0,0.00015944,2]
[403732102,1769515412772,-500.0,0.00015944,2]
[403732103,1769515412797,-500.0,0.00015944,2]
[403732104,1769515412823,-500.0,0.00015944,2]
[403732105,1769515412847,-310.9805,0.00015945,2]
[403732106,1769515412872,-38824.80361153,0.00015945,2]
[403732107,1769515415524,-28573.52578847,0.00015945,2]
[403732108,1769515415559,-1200.0,0.00015958,2]
[403732109,1769515415586,-3743.47039296,0.00015959,2]
[403732110,1769515415610,-669.09595746,0.00015959,2]
[403732111,1769515415634,-1951.917,0.00016044,2]
[403732112,1769515415658,-178.509,0.00016044,2]
[403732113,1769515415685,-500.0,0.00016044,2]
[403732114,1769515415709,-171.93302872,0.00016044,2]
[403732115,1769515416103,-246.19338926,0.00016044,2]
[403732116,1769515416136,-4000.74034759,0.00016045,2]
[403732117,1769515416163,-8764.61509554,0.00016045,2]
[403732118,1769515417341,-50000.0,0.00016045,2]
[403732119,1769515417420,-50000.0,0.00016045,2]
[403732120,1769515418221,-50000.0,0.00016045,2]
[403732121,1769515419146,-50000.0,0.00016045,2]
[403732122,1769515420070,-50000.0,0.00016045,2]
[403732123,1769515420959,-50000.0,0.00016045,2]
[403732124,1769515421818,-50000.0,0.00016045,2]
[403732125,1769515424051,-515.82403208,0.00015959,2]
[403732126,1769515424079,-49484.17596792,0.00016045,2]
[403732226,1769515831771,-155.66528875,0.00015849,2]
[403732229,1769515831781,-95.33471125,0.00015945,2]
[403732233,1769515831795,-2404.66528875,0.00015945,2]
[403732236,1769515831805,-155.63257526,0.00015947,2]
[403732239,1769515831815,-585.45896276,0.00015949,2]
[403732243,1769515831824,-155.66528875,0.00015959,2]
[403732245,1769515831834,-3369.1233537,0.00015959,2]
[403732248,1769515831843,-300.0,0.00016026,2]
[403732250,1769515831852,-1200.0,0.00016026,2]
[403732252,1769515831861,-300.0,0.00016026,2]
[403732254,1769515831870,-479.4657957,0.00016027,2]
[403732255,1769515831885,-5899.5615036,0.00016027,2]
[403732256,1769515831894,-786.68,0.00016035,3]
[403732257,1769515831903,-151.0,0.00016042,2]
[403732258,1769515831912,-1050.88046111,0.00016044,5]
[403732259,1769515831921,-150.0,0.00016044,2]
[403732260,1769515831930,-500.0,0.00016044,2]
[403732261,1769515831939,-500.0,0.00016044,2]
[403732262,1769515831949,-428.32158885,0.00016044,2]
[403732263,1769515831958,-591751.20893654,0.00016045,2]
[403732264,1769515831967,-500.0,0.00016059,2]
[403732265,1769515831976,-150.00196148,0.00016059,2]
[403732266,1769515831985,-542.62641101,0.00016373,2]
[403732267,1769515831994,-500.0,0.00016438,2]
[403732268,1769515832003,-500.0,0.00016438,2]
[403732269,1769515832012,-812.28,0.00016564,2]
[403732270,1769515832020,-165.14,0.00016712,2]
[403732271,1769515832030,-150.0,0.00016838,2]
[403732272,1769515832038,-250.0,0.00017,2]
[403732273,1769515832047,-155.62,0.00017003,2]
[403732274,1769515832058,-764.0,0.00017253,2]
[403732275,1769515832068,-390.0,0.00017376,2]
[403732276,1769515832078,-150.00196148,0.00017402,2]
[403732277,1769515832088,-250.0,0.00017448,2]
[403732278,1769515832097,-420.0,0.00017521,2]
[403732279,1769515832107,-191.3614136,0.0001754,2]
[403732280,1769515832115,-250.0,0.0001754,2]
[403732281,1769515832125,-300.0,0.0001754,2]
[403732282,1769515832134,-1618.0,0.00017609,2]
[403732283,1769515832143,-479.4657957,0.00017728,2]
[403732284,1769515832152,-5899.5615036,0.00017732,2]
[403732285,1769515832161,-511.0,0.00018,2]
[403732286,1769515832170,-500.0,0.00018146,2]
[403732287,1769515832179,-716.0,0.0001839,2]
[403732288,1769515832188,-150.00196148,0.00018745,5]
[403732289,1769515832197,-3369.12335361,0.00018975,2]
[403732290,1769515832206,-3000.0,0.00019,2]
[403732291,1769515832216,-212.0,0.00019156,2]
[403732292,1769515832224,-479.4657957,0.00019428,2]
[403732293,1769515832234,-5899.5615036,0.00019438,2]
[403732294,1769515832243,-500.0,0.000197,2]
[403732295,1769515832252,-155.62,0.00019837,2]
[403732296,1769515832261,-585.45896275,0.00019849,2]
[403732297,1769515832270,-511.0,0.00019937,3]
[403732298,1769515832280,-3000.0,0.0002,2]
[403732299,1769515832289,-150.00196148,0.00020087,9]
[403732300,1769515832300,-9822.91,0.00020951,2]
[403732301,1769515832310,-9451.43,0.00020951,2]
[403732302,1769515832319,-299.99,0.00020951,7]
[403732303,1769515832329,-500.0,0.00020951,2]
[403732304,1769515832339,-150.0,0.00021,7]
[403732305,1769515832348,-3000.0,0.00021,2]
[403732306,1769515832357,-479.4657957,0.00021129,2]
[403732307,1769515832367,-5899.5615036,0.00021143,2]
[403732308,1769515832375,-150.00196148,0.0002143,14]
[403732309,1769515832386,-250.44555653,0.00021562,2]
[403732310,1769515832396,-609.09,0.0002166,2]
[403732311,1769515832406,-511.0,0.00021875,5]
[403732312,1769515832416,-609.09,0.00021934,2]
[403732313,1769515832426,-500.0,0.00021973,2]
[403732314,1769515832438,-150.12904612,0.00021973,2]
[403732315,1769515832447,-167.8676369,0.00021973,2]
[403732316,1769515832459,-485.81902535,0.00021973,2]
[403732317,1769515832468,-3369.12335361,0.0002199,2]
[403732318,1769515832478,-3000.0,0.00022,2]
[403732319,1769515832487,-1500.0,0.00022194,2]
[403732320,1769515832497,-609.09,0.00022208,2]
[403732321,1769515832506,-609.12,0.00022482,2]
[403732322,1769515832515,-1000.0,0.00022483,2]
[403732323,1769515832524,-155.62,0.0002267,2]
[403732324,1769515832534,-150.00196148,0.00022773,18]
[403732325,1769515832543,-159.98208784,0.00022852,2]
[403732326,1769515832553,-3000.0,0.00023,2]
[403732327,1769515832563,-200.0,0.00023015,2]
[403732328,1769515832573,-585.45896275,0.00023749,2]
[403732329,1769515832582,-511.0,0.00023813,7]
[403732330,1769515832591,-3000.0,0.00024,2]
[403732331,1769515832602,-150.00196148,0.00024116,23]
[403732332,1769515832612,-1000.0,0.00024658,2]
[403732333,1769515832622,-150.0,0.00024658,2]
[403732334,1769515832631,-343.88268804,0.00024789,2]
[403732335,1769515832641,-1050.88046112,0.00024799,10]
[403732336,1769515832651,-185388.873566,0.000248,3]
[403732337,1769515832660,-4634.72183915,0.00024889,3]
[403732338,1769515832670,-49559.4153741,0.000249,3]
[403732339,1769515832680,-3000.0,0.00025,2]
[403732340,1769515832690,-3369.12335361,0.00025006,2]
[403732341,1769515832699,-4955.94153741,0.00025023,3]
[403732342,1769515832709,-4634.72183915,0.00025283,3]
[403732343,1769515832718,-1000.0,0.00025293,2]
[403732344,1769515832728,-150.00196148,0.00025459,27]
[403732345,1769515832737,-155.62,0.00025504,2]
[403732346,1769515832746,-511.0,0.0002575,9]
[403732347,1769515832755,-4955.94153741,0.0002599,3]
[403732348,1769515832765,-3000.0,0.00026,2]
[403732349,1769515832774,-150.00196148,0.00026801,31]
[403732350,1769515832784,-150.0,0.00027,2]
[403732351,1769515832793,-3000.0,0.00027,2]
[403732352,1769515832802,-150.0,0.00027123,2]
[403732353,1769515832812,-585.45896275,0.00027649,2]
[403732354,1769515832821,-511.0,0.00027688,11]
[403732355,1769515832830,-4634.72183915,0.0002799,3]
[403732356,1769515832839,-3539.75545861,0.00028,2]
[403732357,1769515832848,-4955.94153741,0.00028051,3]
[403732358,1769515832858,-4634.72183915,0.00028094,3]
[403732359,1769515832867,-1000.0,0.00028104,2]
[403732360,1769515832877,-150.00196148,0.00028144,35]
[403732361,1769515832887,-150.00196148,0.00029487,39]
[403732362,1769515832905,-4955.94153741,0.00029543,3]
[403732363,1769515832922,-500.0,0.00029552,2]
[403732364,1769515832937,-5000.0,0.00029553,2]
[403732365,1769515832953,-150.0,0.00029589,2]
[403732366,1769515832970,-511.0,0.00029625,12]
[403732367,1769515832985,-150.0,0.00029695,2]
[403732368,1769515832999,-165.2,0.000302,14]
[403732369,1769515833016,-195.99,0.00030411,120]
[403732370,1769515833032,-690.0,0.000305,7]
[403732371,1769515833049,-614.35,0.00030774,7]
[403732372,1769515833068,-150.00196148,0.0003083,43]
[403732373,1769515833084,-4634.72183915,0.00030904,3]
[403732374,1769515833100,-1000.0,0.00030914,2]
[403732375,1769515833117,-4955.94153741,0.00031083,3]
[403732376,1769515833133,-4634.72183915,0.00031301,3]
[403732377,1769515833147,-1408.0,0.00031311,2]
[403732378,1769515833160,-615.674,0.00031311,2]
[403732379,1769515833179,-1340.335,0.00031311,2]
[403732380,1769515833190,-1269.0,0.00031311,2]
[403732381,1769515833204,-184.0,0.00031311,2]
[403732382,1769515833219,-4634.72183915,0.00031433,3]
[403732383,1769515833232,-4955.94153741,0.00031433,3]
[403732384,1769515833246,-6570.0,0.00031443,2]
[403732385,1769515833260,-567.0,0.00031443,2]
[403732386,1769515833282,-487.0,0.00031443,2]
[403732387,1769515833296,-487.0,0.00031443,2]
[403732388,1769515833311,-487.0,0.00031443,2]
[403732389,1769515833325,-487.0,0.00031443,2]
[403732390,1769515833338,-487.0,0.00031443,2]
[403732391,1769515833353,-487.0,0.00031443,2]
[403732392,1769515833367,-904.04,0.00031443,2]
[403732393,1769515833380,-585.45896275,0.00031549,2]
[403732394,1769515833394,-511.0,0.00031562,14]
[403732395,1769515833408,-9269.4436783,0.00031629,3]
[403732396,1769515833422,-211.56967388,0.00031629,3]
[403732397,1769515833442,-9700.31340094,0.00031629,3]
[403732398,1769515833455,-150.0,0.00031639,2]
[403732399,1769515833469,-150.0,0.00031639,2]
[403732400,1769515833484,-150.0,0.00031639,2]
[403732401,1769515833498,-150.0,0.00031639,2]
[403732402,1769515833513,-150.0,0.00031639,2]
[403732403,1769515833528,-150.0,0.00031639,2]
[403732404,1769515833542,-676.17593472,0.00031639,2]
[403732405,1769515833560,-2799.82406528,0.00031639,2]
[403732406,1769515833575,-10000.0,0.00031639,2]
[403732407,1769515833590,-150.00196148,0.00032173,46]
[403732408,1769515833605,-343.88268804,0.00032774,6]
[403732409,1769515833619,-4634.72183915,0.00032977,3]
[403732410,1769515833634,-4955.94153741,0.00032977,3]
[403732411,1769515833648,-150.0,0.00032987,2]
[403732412,1769515833663,-150.0,0.00032987,2]
[403732413,1769515833678,-500.0,0.00032987,2]
[403732414,1769515833692,-500.0,0.00032987,2]
[403732415,1769515833706,-150.0,0.00032987,2]
[403732416,1769515833720,-150.0,0.00032987,2]
[403732417,1769515833734,-150.3719537,0.00032987,2]
[403732418,1769515833748,-150.0,0.00032987,2]
[403732419,1769515833761,-150.0,0.00032987,2]
[403732420,1769515833775,-150.67985043,0.00032987,2]
[403732421,1769515833790,-150.0,0.00032987,2]
[403732422,1769515833804,-150.19824857,0.00032987,2]
[403732423,1769515833817,-150.0,0.00032987,2]
[403732424,1769515833831,-500.0,0.00032987,2]
[403732425,1769515833844,-150.0,0.00032987,2]
[403732426,1769515833857,-213.19994559,0.00032987,2]
[403732427,1769515833871,-150.93589511,0.00032987,2]
[403732428,1769515833885,-150.24261092,0.00032987,2]
[403732429,1769515833900,-150.0,0.00032987,2]
[403732430,1769515833915,-150.26756986,0.00032987,2]
[403732431,1769515833928,-150.22397991,0.00032987,2]
[403732432,1769515833942,-202.67953144,0.00032987,2]
[403732433,1769515833956,-150.0,0.00032987,2]
[403732434,1769515833969,-150.0,0.00032987,2]
[403732435,1769515833982,-150.0,0.00032987,2]
[403732436,1769515833995,-150.0,0.00032987,2]
[403732437,1769515834009,-500.0,0.00032987,2]
[403732438,1769515834023,-500.0,0.00032987,2]
[403732439,1769515834036,-150.0,0.00032987,2]
[403732440,1769515834050,-150.0,0.00032987,2]
[403732441,1769515834064,-203.27859548,0.00032987,2]
[403732442,1769515834078,-500.0,0.00032987,2]
[403732443,1769515834092,-500.0,0.00032987,2]
[403732444,1769515834106,-500.0,0.00032987,2]
[403732445,1769515834119,-150.0,0.00032987,2]
[403732446,1769515834132,-150.0,0.00032987,2]
[403732447,1769515834145,-500.0,0.00032987,2]
[403732448,1769515834158,-150.0,0.00032987,2]
[403732449,1769515834172,-500.0,0.00032987,2]
[403732450,1769515834185,-150.0,0.00032987,2]
[403732451,1769515834199,-557.549348,0.00033,14]
[403732452,1769515834212,-157.16,0.00033,14]
[403732453,1769515834225,-4634.72183915,0.00033032,3]
[403732454,1769515834239,-4955.94153741,0.00033032,3]
[403732455,1769515834252,-150.0,0.00033042,2]
[403732456,1769515834264,-500.0,0.00033042,2]
[403732457,1769515834278,-500.0,0.00033042,2]
[403732458,1769515834292,-150.0,0.00033042,2]
[403732459,1769515834306,-150.0,0.00033042,2]
[403732460,1769515834320,-150.0,0.00033042,2]
[403732461,1769515834333,-500.0,0.00033042,2]
[403732462,1769515834346,-97.25556199,0.00033042,2]
[403732463,1769515834363,-52.74443801,0.00033042,2]
[403732464,1769515834376,-150.0,0.00033042,2]
[403732465,1769515834390,-123.96889477,0.00033042,2]
[403732466,1769515834449,-26.03110523,0.00033042,2]
[403732467,1769515834462,-150.0,0.00033042,2]
[403732468,1769515834475,-500.0,0.00033042,2]
[403732469,1769515834488,-500.0,0.00033042,2]
[403732470,1769515834501,-150.0,0.00033042,2]
[403732471,1769515834515,-150.0,0.00033042,2]
[403732472,1769515834528,-500.0,0.00033042,2]
[403732473,1769515834542,-500.0,0.00033042,2]
[403732474,1769515834556,-128.32459477,0.00033042,2]
[403732475,1769515834572,-371.67540523,0.00033042,2]
[403732476,1769515834585,-500.0,0.00033042,2]
[403732477,1769515834598,-500.0,0.00033042,2]
[403732478,1769515834612,-150.0,0.00033042,2]
[403732479,1769515834625,-500.0,0.00033097,2]
[403732480,1769515834639,-200.0,0.00033097,2]
[403732481,1769515834653,-500.0,0.00033097,2]
[403732482,1769515834666,-150.0,0.00033097,2]
[403732483,1769515834679,-150.0,0.00033097,2]
[403732484,1769515834693,-200.0,0.00033097,2]
[403732485,1769515834705,-500.0,0.00033097,2]
[403732486,1769515834718,-150.0,0.00033097,2]
[403732487,1769515834731,-203.69372855,0.00033097,2]
[403732488,1769515834744,-150.0,0.00033097,2]
[403732489,1769515834756,-150.0,0.00033097,2]
[403732490,1769515834769,-500.0,0.00033097,2]
[403732491,1769515834782,-500.0,0.00033097,2]
[403732492,1769515834795,-200.0,0.00033097,2]
[403732493,1769515834808,-200.0,0.00033097,2]
[403732494,1769515834821,-500.0,0.00033097,2]
[403732495,1769515834835,-500.0,0.00033097,2]
[403732496,1769515834849,-500.0,0.00033097,2]
[403732497,1769515834861,-500.0,0.00033097,2]
[403732498,1769515834875,-500.0,0.00033097,2]
[403732499,1769515834889,-183.73093878,0.00033097,2]
[403732500,1769515834903,-429.29992743,0.00033142,3]
[403732501,1769515834919,-333.05133563,0.00033142,3]
[403732505,1769515837587,-491.34137138,0.00028022,2]
[403732506,1769515837599,-2774.8928558,0.00028022,2]
[403732507,1769515837611,-102.88912643,0.00028022,2]
[403732508,1769515837620,-292.965,0.00030296,2]
[403732509,1769515837630,-413.29774361,0.00033142,3]
[403732510,1769515837699,-3459.07283248,0.00033142,3]
[403732511,1769515837709,-4955.94153741,0.00033142,3]
[403732512,1769515837719,-500.0,0.00033151,2]
[403732513,1769515837728,-500.0,0.00033151,2]
[403732514,1769515837738,-150.0,0.00033151,2]
[403732515,1769515837747,-150.0,0.00033151,2]
[403732516,1769515837757,-500.0,0.00033151,2]
[403732517,1769515837766,-233.88330882,0.00033151,2]
[403732518,1769515837775,-150.0,0.00033151,2]
[403732519,1769515837786,-150.0,0.00033151,2]
[403732520,1769515837800,-500.0,0.00033151,2]
[403732521,1769515837810,-500.0,0.00033151,2]
[403732522,1769515837823,-165.23237875,0.00033151,2]
[403732523,1769515837832,-500.0,0.00033151,2]
[403732524,1769515837842,-500.0,0.00033151,2]
[403732525,1769515837851,-500.0,0.00033151,2]
[403732526,1769515837862,-500.0,0.00033151,2]
[403732527,1769515837871,-500.0,0.00033206,2]
[403732528,1769515837881,-500.0,0.00033206,2]
[403732529,1769515837890,-150.0,0.00033206,2]
[403732530,1769515837901,-252.89279287,0.00033206,2]
[403732531,1769515837911,-511.05918766,0.00033206,2]
[403732532,1769515837924,-500.0,0.00033206,2]
[403732533,1769515837934,-500.0,0.00033261,2]
[403732534,1769515837943,-500.0,0.00033261,2]
[403732535,1769515837953,-500.0,0.00033316,2]
[403732536,1769515837963,-500.0,0.00033316,2]
[403732537,1769515837972,-500.0,0.00033371,2]
[403732538,1769515837981,-398.0,0.00033371,2]
[403732539,1769515837991,-299.94850001,0.00033425,2]
[403732540,1769515838007,-200.05149999,0.00033425,2]
[403732541,1769515838017,-4634.72183915,0.0003349,3]
[403732542,1769515838030,-511.0,0.000335,16]
[403732543,1769515838040,-150.00196148,0.00033515,50]
[403732544,1769515838050,-4955.94153741,0.00033659,3]
[403732545,1769515838059,-1930.29224757,0.00033669,5]
[403732546,1769515838071,-1155.40615694,0.00033669,5]
[403732547,1769515838087,-1196.42200763,0.00033669,5]
[403732701,1769515839555,-2357.922,0.00031443,2]
[403732703,1769515839564,-1530.87958786,0.00033669,5]
[403732705,1769515839573,-1000.0,0.00033724,2]
[403732707,1769515839583,-4634.72183915,0.00034106,3]
[403732709,1769515839592,-4955.94153741,0.0003411,3]
[403732711,1769515839602,-157.16,0.000342,14]
[403732713,1769515839612,-1408.0,0.00034311,2]
[403732715,1769515839621,-151.0,0.0003443,14]
[403732717,1769515839631,-4634.72183915,0.00034433,3]
[403732719,1769515839641,-4955.94153741,0.00034433,3]
[403732721,1769515839650,-6570.0,0.00034443,2]
[403732723,1769515839659,-567.0,0.00034443,2]
[403732725,1769515839668,-4634.72183915,0.00034629,3]
[403732727,1769515839678,-4955.94153741,0.00034629,3]
[403732729,1769515839687,-150.0,0.00034638,20]
[403732731,1769515839697,-150.0,0.00034639,2]
[403732733,1769515839706,-150.0,0.00034639,2]
[403732735,1769515839716,-150.0,0.00034639,2]
[403732737,1769515839725,-150.0,0.00034639,2]
[403732739,1769515839734,-10000.0,0.00034639,2]
[403732741,1769515839743,-150.00196169,0.00034858,54]
[403732744,1769515839754,-150.0,0.00034886,2]
[403732746,1769515839764,-250.0,0.00035,7]
[403732748,1769515839773,-511.0,0.00035438,18]
[403732750,1769515839782,-585.45896275,0.00035449,2]
[403732752,1769515839791,-175.27605124,0.00035615,14]
[403732754,1769515839800,-750.0,0.00036003,20]
[403732756,1769515839809,-165.35762324,0.00036201,57]
[403732758,1769515839819,-218.71,0.00036343,14]
[403732760,1769515839828,-157.16,0.000364,14]
[403732762,1769515839837,-287.79715763,0.0003686,28]
[403732764,1769515839846,-430.5273358,0.0003686,28]
[403732766,1769515839856,-582.516,0.0003686,28]
[403732768,1769515839865,-4634.72183915,0.00037134,4]
[403732770,1769515839874,-4955.94153741,0.00037137,4]
[403732772,1769515839887,-1408.0,0.00037311,2]
[403732774,1769515839898,-511.0,0.00037375,20]
[403732776,1769515839907,-6570.0,0.00037443,2]
[403732779,1769515839919,-250.0,0.000375,7]
[403732781,1769515839928,-165.35762324,0.00037544,61]
[403732783,1769515839938,-256.38582786,0.0003828,2]
[403732785,1769515839947,-4955.94153741,0.0003829,4]
[403732787,1769515839956,-235.47,0.000383,30]
[403732789,1769515839965,-500.0,0.00038356,60]
[403732791,1769515839975,-500.0,0.00038411,60]
[403732793,1769515839984,-500.0,0.00038466,60]
[403732795,1769515839993,-598.63856126,0.0003852,60]
[403732797,1769515840002,-4955.94153741,0.00038589,4]
[403732799,1769515840011,-172.0,0.0003859,2]
[403732801,1769515840020,-10455.0,0.00038599,20]
[403732803,1769515840030,-155.23325726,0.0003861,30]
[403732805,1769515840039,-172.0,0.00038636,7]
[403732807,1769515840047,-1313.0,0.00038719,120]
[403732809,1769515840057,-172.0,0.00038809,7]
[403732811,1769515840066,-165.35762324,0.00038886,65]
[403732813,1769515840080,-4955.94153741,0.00038987,4]
[403732815,1769515840088,-10455.0,0.00038997,20]
[403732817,1769515840098,-710.6373,0.00039048,15]
[403732818,1769515840107,-172.0,0.000393,2]
[403732819,1769515840116,-511.0,0.00039313,21]
[403732820,1769515840125,-585.45896275,0.00039349,2]
[403732821,1769515840134,-4955.94153741,0.00039385,4]
[403732822,1769515840154,-10455.0,0.00039395,20]
[403732823,1769515840163,-1951.917,0.00039533,55]
[403732824,1769515840172,-4955.94153741,0.00039598,4]
[403732825,1769515840181,-1312.0,0.00039608,120]
[403732826,1769515840190,-1313.0,0.00039659,2]
[403732827,1769515840199,-2000.0,0.000397,2]
[403732828,1769515840208,-172.0,0.00039747,2]
[403732829,1769515840218,-4955.94153741,0.00039783,4]
[403732830,1769515840227,-10455.0,0.00039793,20]
[403732831,1769515840236,-1312.0,0.00039826,2]
[403732832,1769515840245,-250.0,0.0004,7]
[403732834,1769515840255,-172.0,0.00040065,2]
[403732836,1769515840264,-172.0,0.00040131,120]
[403732838,1769515840274,-4955.94153741,0.00040163,4]
[403732840,1769515840283,-4955.94153741,0.00040181,4]
[403732842,1769515840293,-10455.0,0.00040191,20]
[403732844,1769515840303,-165.35762324,0.00040229,69]
[403732846,1769515840312,-1000.0,0.000403,2]
[403732848,1769515840324,-6570.0,0.00040443,2]
[403732850,1769515840334,-4955.94153741,0.00040446,4]
[403732852,1769515840343,-172.0,0.00040456,2]
[403732854,1769515840353,-172.0,0.00040532,2]
[403732856,1769515840363,-4955.94153741,0.00040579,4]
[403732858,1769515840372,-10455.0,0.00040589,20]
[403732860,1769515840381,-343.88268804,0.00040758,16]
[403732862,1769515840391,-1361.2,0.00040858,120]
[403732864,1769515840400,-4955.94153741,0.00040977,4]
[403732866,1769515840409,-10455.0,0.00040987,20]
[403732868,1769515840418,-172.0,0.00041093,2]
[403732870,1769515840429,-1312.0,0.00041162,2]
[403732872,1769515840438,-172.0,0.00041234,2]
[403732874,1769515840447,-511.0,0.0004125,23]
[403732877,1769515840457,-172.0,0.00041277,120]
[403732879,1769515840467,-1361.2,0.00041291,120]
[403732881,1769515840476,-500.0,0.00041439,2]
[403732883,1769515840486,-1312.0,0.0004144,7]
[403732885,1769515840495,-165.35762324,0.00041572,72]
[403732887,1769515840504,-500.0,0.00041701,60]
[403732889,1769515840514,-500.0,0.00041701,60]
[403732891,1769515840523,-500.0,0.00041701,60]
[403732893,1769515840533,-4955.94153741,0.00041713,4]
[403732895,1769515840542,-1361.2,0.00041723,120]
[403732897,1769515840551,-172.0,0.00041907,2]
[403732899,1769515840561,-172.0,0.00041974,2]
[403732901,1769515840570,-2104.65,0.00042,60]
[403732903,1769515840580,-500.0,0.00042,120]
[403732905,1769515840590,-3658.35797312,0.00042045,7]
[403732907,1769515840600,-172.0,0.00042064,2]
[403732909,1769515840610,-200.0,0.0004211,120]
[403732911,1769515840619,-1312.0,0.00042199,2]
[403732913,1769515840629,-1313.0,0.00042258,7]
[403732915,1769515840638,-4955.94153741,0.00042322,4]
[403732917,1769515840647,-4955.94153741,0.00042326,4]
[403732919,1769515840657,-1312.0,0.00042332,2]
[403732921,1769515840666,-1129.6861713,0.00042336,50]
[403732924,1769515840680,-1023.31013588,0.00042336,50]
[403732926,1769515840689,-1057.23098642,0.00042336,50]
[403732928,1769515840699,-1130.88475522,0.00042336,50]
[403732930,1769515840708,-1078.61820841,0.00042336,50]
[403732932,1769515840717,-1030.93749706,0.00042336,50]
[403732934,1769515840727,-1120.09130074,0.00042336,50]
[403732936,1769515840736,-1003.64891311,0.00042336,50]
[403732938,1769515840745,-1073.00544235,0.00042336,50]
[403732940,1769515840754,-1881.14698579,0.00042336,50]
[403732942,1769515840763,-172.0,0.00042433,7]
[403732944,1769515840775,-500.0,0.00042438,120]
[403732946,1769515840785,-4955.94153741,0.00042465,4]
[403732948,1769515840795,-1000.0,0.00042466,30]